bitfinex/quotes_BTCUSD_20241024
["timestamp","ask_amount","ask_price","bid_price","bid_amount"]
[1729812166434,0.5762973,68222.0,68221.0,0.020825]
[1729812171109,0.58723527,68222.0,68221.0,0.020825]
[1729812171889,0.37893527,68222.0,68221.0,0.020825]
[1729812173400,0.3679973,68222.0,68221.0,0.020825]
[1729812174268,0.3789789,68222.0,68221.0,0.020825]
[1729812178947,0.27428379,68222.0,68221.0,0.17132881]
[1729812179172,0.16083567,68222.0,68221.0,0.17132881]
[1729812179396,0.36576871,68222.0,68221.0,0.17132881]
[1729812180713,0.36576871,68222.0,68221.0,0.17632881]
[1729812180944,0.01425567,68222.0,68221.0,0.30252881]
[1729812181151,0.11672219,68222.0,68221.0,0.30252881]
[1729812181569,0.12770193,68222.0,68221.0,0.30252881]
[1729812182287,0.21918871,68222.0,68221.0,0.30252881]
[1729812182706,0.36576871,68222.0,68221.0,0.30252881]
[1729812191773,0.36576871,68222.0,68221.0,0.29752881]
[1729812192167,0.36576871,68222.0,68221.0,0.30252881]
[1729812193456,0.26330219,68222.0,68221.0,0.17923231]
[1729812193841,0.11672219,68222.0,68221.0,0.17923231]
[1729812194075,0.11672219,68222.0,68221.0,0.30543231]
[1729812194831,0.26330219,68222.0,68221.0,0.30543231]
[1729812195044,0.11672219,68222.0,68221.0,0.30543231]
[1729812196224,0.26330219,68222.0,68221.0,0.30543231]
[1729812197414,0.11672219,68222.0,68221.0,0.30543231]
[1729812197824,0.26330219,68222.0,68221.0,0.30543231]
[1729812199070,0.11672219,68222.0,68221.0,0.30543231]
[1729812199686,0.26330219,68222.0,68221.0,0.30543231]
[1729812205175,0.27428219,68222.0,68221.0,0.30543231]
[1729812206013,0.26330219,68222.0,68221.0,0.30543231]
[1729812206904,0.27428233,68222.0,68221.0,0.30543231]
[1729812207845,0.26330219,68222.0,68221.0,0.30543231]
[1729812208059,0.27428261,68222.0,68221.0,0.30543231]
[1729812210275,0.37674913,68222.0,68221.0,0.30543231]
[1729812210468,0.37674913,68222.0,68221.0,0.17423231]
[1729812210940,0.37674913,68222.0,68221.0,0.17923231]
[1729812211373,0.37674913,68222.0,68221.0,0.17423231]
[1729812211551,0.36576871,68222.0,68221.0,0.17423231]
[1729812211754,0.36576871,68222.0,68221.0,0.17923231]
[1729812213485,0.36576871,68222.0,68221.0,0.17423231]
[1729812217706,0.36576871,68222.0,68221.0,0.17132881]
[1729812220504,0.16083567,68222.0,68221.0,0.17132881]
[1729812220749,0.26330219,68222.0,68221.0,0.30212881]
[1729812220993,0.26330219,68222.0,68221.0,0.30503231]
[1729812221704,0.26330219,68222.0,68221.0,0.31003231]
[1729812222365,0.36576871,68222.0,68221.0,0.17923231]
[1729812222945,0.26330219,68222.0,68221.0,0.17923231]
[1729812223378,0.36576871,68222.0,68221.0,0.17923231]
[1729812229203,0.11464783,68222.0,68221.0,0.17923231]
[1729812229406,0.26122783,68222.0,68221.0,0.17923231]
[1729812229630,0.26122783,68222.0,68221.0,0.1838148]
[1729812230311,0.26122783,68222.0,68221.0,0.17923231]
[1729812230532,0.26122783,68222.0,68221.0,0.18381471]
[1729812231152,0.26122783,68222.0,68221.0,0.17923231]
[1729812231362,0.26122783,68222.0,68221.0,0.18381475]
[1729812232212,0.26122783,68222.0,68221.0,0.17923231]
[1729812232427,0.11464783,68222.0,68221.0,0.31003231]
[1729812232634,0.26122783,68222.0,68221.0,0.39193231]
[1729812233281,0.26342648,68222.0,68221.0,0.39193231]
[1729812233485,0.11849848,68222.0,68221.0,0.39193231]
[1729812234460,0.26507848,68222.0,68221.0,0.39193231]
[1729812234665,0.11849848,68222.0,68221.0,0.39193231]
[1729812234913,0.11849848,68222.0,68221.0,0.3965147]
[1729812236963,0.26507848,68222.0,68221.0,0.3965147]
[1729812237382,0.26507848,68222.0,68221.0,0.3146147]
[1729812237868,0.26507848,68222.0,68221.0,0.31003231]
[1729812238708,0.11849848,68222.0,68221.0,0.31003231]
[1729812240056,0.11849848,68222.0,68221.0,0.3146147]
[1729812240519,0.10631717,68222.0,68221.0,0.3146147]
[1729812240740,0.11744289,68222.0,68221.0,0.3146147]
[1729812241188,0.11524424,68222.0,68221.0,0.3146147]
[1729812243244,0.11524424,68222.0,68221.0,0.31003231]
[1729812244804,0.001652,68222.0,68221.0,0.31003231]
[1729812245020,0.01277889,68222.0,68221.0,0.31003231]
[1729812245857,0.01277889,68222.0,68221.0,0.31461472]
[1729812246092,0.01277889,68222.0,68221.0,0.31003231]
[1729812248920,0.01277889,68222.0,68221.0,0.17923231]
[1729812251461,0.15935889,68222.0,68221.0,0.17923231]
[1729812251659,0.15935889,68222.0,68221.0,0.17132881]
[1729812251874,0.26182541,68222.0,68221.0,0.020825]
[1729812252088,0.39262541,68222.0,68221.0,0.020825]
[1729812252295,0.29015889,68222.0,68221.0,0.020825]
[1729812265472,0.15935889,68222.0,68221.0,0.020825]
[1729812266911,0.16155753,68222.0,68221.0,0.020825]
[1729812268357,0.26402405,68222.0,68221.0,0.020825]
[1729812270611,0.26182541,68222.0,68221.0,0.020825]
[1729812270855,0.26402405,68222.0,68221.0,0.020825]
[1729812271077,0.16155753,68222.0,68221.0,0.020825]
[1729812274075,0.17253411,68222.0,68221.0,0.020825]
[1729812274919,0.16155753,68222.0,68221.0,0.020825]
[1729812278056,0.17253852,68222.0,68221.0,0.020825]
[1729812280052,0.1725385,68222.0,68221.0,0.020825]
[1729812280520,0.16155753,68222.0,68221.0,0.020825]
[1729812282311,0.172542,68222.0,68221.0,0.020825]
[1729812282526,0.17034336,68222.0,68221.0,0.020825]
[1729812282732,0.15935889,68222.0,68221.0,0.020825]
[1729812285052,0.17034346,68222.0,68221.0,0.020825]
[1729812287785,0.15935889,68222.0,68221.0,0.020825]
[1729812292320,0.17034954,68222.0,68221.0,0.020825]
[1729812292983,0.15935889,68222.0,68221.0,0.020825]
[1729812294471,0.01277889,68222.0,68221.0,0.30262881]
[1729812295103,0.02377054,68222.0,68221.0,0.30262881]
[1729812296360,0.17035054,68222.0,68221.0,0.30262881]
[1729812296814,0.02377054,68222.0,68221.0,0.30262881]
[1729812297224,0.01277889,68222.0,68221.0,0.30262881]
[1729812297429,0.02377092,68222.0,68221.0,0.30262881]
[1729812297863,0.37528396,68222.0,68221.0,0.020825]
[1729812298073,0.4719948,68222.0,68221.0,0.020825]
[1729812298290,0.27281744,68222.0,68221.0,0.020825]
[1729812307068,0.26182541,68222.0,68221.0,0.020825]
[1729812308957,0.26182541,68222.0,68221.0,0.02540744]
[1729812309375,0.26182541,68222.0,68221.0,0.020825]
[1729812309779,0.27281344,68222.0,68221.0,0.020825]
[1729812310347,0.26182541,68222.0,68221.0,0.020825]
[1729812311390,0.34719039,68222.0,68221.0,0.020825]
[1729812312726,0.35817405,68222.0,68221.0,0.020825]
[1729812313577,0.34719039,68222.0,68221.0,0.020825]
[1729812315532,0.15935889,68222.0,68221.0,0.020825]
[1729812315770,0.01277889,68222.0,68221.0,0.38202881]
[1729812316196,0.01277889,68222.0,68221.0,0.38493231]
[1729812316403,0.001652,68222.0,68221.0,0.53151431]
[1729812316609,0.001652,68222.0,68221.0,0.38493231]
[1729812318806,0.0109209,68222.0,68221.0,0.38493231]
[1729812321973,0.02190671,68222.0,68221.0,0.38493231]
[1729812325472,0.0109209,68222.0,68221.0,0.38493231]
[1729812326720,0.02190364,68222.0,68221.0,0.38493231]
[1729812327131,0.16848364,68222.0,68221.0,0.38493231]
[1729812329456,0.1575009,68222.0,68221.0,0.38493231]
[1729812331363,0.16848575,68222.0,68221.0,0.38493231]
[1729812335092,0.16848575,68222.0,68221.0,0.30413231]
[1729812337267,0.16848575,68222.0,68221.0,0.30122881]
[1729812337516,0.16848575,68222.0,68221.0,0.17132881]
[1729812339793,0.1575009,68222.0,68221.0,0.17132881]
[1729812343889,0.16848786,68222.0,68221.0,0.17132881]
[1729812344332,0.1575009,68222.0,68221.0,0.17132881]
[1729812344804,0.16848738,68222.0,68221.0,0.17132881]
[1729812345044,0.16848738,68222.0,68221.0,0.020825]
[1729812345504,0.1575009,68222.0,68221.0,0.020825]
[1729812348835,0.25996742,68222.0,68221.0,0.020825]
[1729812349128,0.46329601,68222.0,68221.0,0.020825]
[1729812349337,0.50724182,68222.0,68221.0,0.020825]
[1729812349577,0.50722673,68222.0,68221.0,0.020825]
[1729812351633,0.47428352,68222.0,68221.0,0.020825]
[1729812353009,0.54020224,68222.0,68221.0,0.020825]
[1729812353224,0.51819255,68222.0,68221.0,0.020825]
[1729812353654,0.47428352,68222.0,68221.0,0.020825]
[1729812354073,0.51819255,68222.0,68221.0,0.020825]
[1729812354287,0.51839255,68222.0,68221.0,0.020825]
[1729812355063,0.47448352,68222.0,68221.0,0.020825]
[1729812355315,0.51837589,68222.0,68221.0,0.020825]
[1729812355662,0.47448352,68222.0,68221.0,0.020825]
[1729812357938,0.46349601,68222.0,68221.0,0.020825]
[1729812362013,0.47445764,68222.0,68221.0,0.020825]
[1729812362453,0.46349601,68222.0,68221.0,0.020825]
[1729812363791,0.47445604,68222.0,68221.0,0.020825]
[1729812364429,0.46349601,68222.0,68221.0,0.020825]
[1729812365300,0.15992949,68222.0,68221.0,0.020825]
[1729812365523,0.26239601,68222.0,68221.0,0.020825]
[1729812366605,0.26459476,68222.0,68221.0,0.020825]
[1729812367247,0.36706128,68222.0,68221.0,0.020825]
[1729812368329,0.26459476,68222.0,68221.0,0.020825]
[1729812368761,0.36706128,68222.0,68221.0,0.020825]
[1729812369341,0.26459476,68222.0,68221.0,0.020825]
[1729812369718,0.36706128,68222.0,68221.0,0.020825]
[1729812369978,0.26459476,68222.0,68221.0,0.020825]
[1729812370147,0.36706128,68222.0,68221.0,0.020825]
[1729812370352,0.26459476,68222.0,68221.0,0.020825]
[1729812371011,0.36706128,68222.0,68221.0,0.020825]
[1729812371550,0.26459476,68222.0,68221.0,0.020825]
[1729812371964,0.36706128,68222.0,68221.0,0.020825]
[1729812373240,0.56606128,68222.0,68221.0,0.020825]
[1729812378498,0.36706128,68222.0,68221.0,0.020825]
[1729812378731,0.26459476,68222.0,68221.0,0.020825]
[1729812378944,0.36706128,68222.0,68221.0,0.020825]
[1729812389630,0.41095181,68222.0,68221.0,0.020825]
[1729812392475,0.36706128,68222.0,68221.0,0.020825]
[1729812394463,0.43289708,68222.0,68221.0,0.020825]
[1729812395980,0.43297271,68222.0,68221.0,0.020825]
[1729812400838,0.43296585,68222.0,68221.0,0.020825]
[1729812401407,0.36706128,68222.0,68221.0,0.020825]
[1729812401812,0.43296585,68222.0,68221.0,0.020825]
[1729812402253,0.36706128,68222.0,68221.0,0.020825]
[1729812402662,0.43296585,68222.0,68221.0,0.020825]
[1729812404049,0.36706128,68222.0,68221.0,0.020825]
[1729812404250,0.43296123,68222.0,68221.0,0.020825]
[1729812404457,0.36706128,68222.0,68221.0,0.020825]
[1729812404887,0.43295906,68222.0,68221.0,0.020825]
[1729812405657,0.43295921,68222.0,68221.0,0.020825]
[1729812406094,0.36706128,68222.0,68221.0,0.020825]
[1729812406315,0.43295921,68222.0,68221.0,0.020825]
[1729812406516,0.36706128,68222.0,68221.0,0.020825]
[1729812406930,0.52924952,68222.0,68221.0,0.020825]
[1729812407360,0.36706128,68222.0,68221.0,0.020825]
[1729812408025,0.43297006,68222.0,68221.0,0.020825]
[1729812408458,0.52924386,68222.0,68221.0,0.020825]
[1729812408664,0.52924041,68222.0,68221.0,0.020825]
[1729812408869,0.36706128,68222.0,68221.0,0.020825]
[1729812409084,0.43296604,68222.0,68221.0,0.020825]
[1729812409300,0.61710675,68222.0,68221.0,0.020825]
[1729812409513,0.36706128,68222.0,68221.0,0.020825]
[1729812411238,0.43296691,68222.0,68221.0,0.020825]
[1729812411460,0.36706128,68222.0,68221.0,0.020825]
[1729812411664,0.45493577,68222.0,68221.0,0.020825]
[1729812411886,0.43296866,68222.0,68221.0,0.020825]
[1729812412312,0.36706128,68222.0,68221.0,0.020825]
[1729812412721,0.5292583,68222.0,68221.0,0.020825]
[1729812413126,0.36706128,68222.0,68221.0,0.020825]
[1729812413328,0.52926298,68222.0,68221.0,0.020825]
[1729812413537,0.61713747,68222.0,68221.0,0.020825]
[1729812413735,0.36706128,68222.0,68221.0,0.020825]
[1729812413963,0.61712684,68222.0,68221.0,0.020825]
[1729812414164,0.52925235,68222.0,68221.0,0.020825]
[1729812414370,0.61712684,68222.0,68221.0,0.020825]
[1729812416089,0.52925235,68222.0,68221.0,0.020825]
[1729812416562,0.61712684,68222.0,68221.0,0.020825]
[1729812416781,0.51466032,68222.0,68221.0,0.020825]
[1729812417211,0.61712684,68222.0,68221.0,0.020825]
[1729812417666,0.51466032,68222.0,68221.0,0.020825]
[1729812418356,0.61492809,68222.0,68221.0,0.020825]
[1729812419214,0.61712699,68222.0,68221.0,0.020825]
[1729812419989,0.52930521,68222.0,68221.0,0.020825]
[1729812420652,0.6172103,68222.0,68221.0,0.020825]
[1729812421915,0.6150114,68222.0,68221.0,0.020825]
[1729812422106,0.52710631,68222.0,68221.0,0.020825]
[1729812422323,0.52930521,68222.0,68221.0,0.020825]
[1729812423257,0.6391846,68222.0,68221.0,0.020825]
[1729812425025,0.52930521,68222.0,68221.0,0.020825]
[1729812425765,0.6391846,68222.0,68221.0,0.020825]
[1729812426916,0.52930521,68222.0,68221.0,0.020825]
[1729812427138,0.6391846,68222.0,68221.0,0.020825]
[1729812427617,0.52930521,68222.0,68221.0,0.020825]
[1729812428070,0.6391846,68222.0,68221.0,0.020825]
[1729812428299,0.6391728,68222.0,68221.0,0.020825]
[1729812428750,0.52929818,68222.0,68221.0,0.020825]
[1729812429200,0.66239565,68222.0,68221.0,0.020825]
[1729812430126,0.66439565,68222.0,68221.0,0.020825]
[1729812430363,0.66239565,68222.0,68221.0,0.020825]
[1729812430592,0.78929565,68222.0,68221.0,0.020825]
[1729812430825,0.45126514,68222.0,68221.0,0.020825]
[1729812431064,0.65619818,68222.0,68221.0,0.020825]
[1729812431525,0.66718544,68222.0,68221.0,0.020825]
[1729812431754,0.65619818,68222.0,68221.0,0.020825]
[1729812432510,0.32436514,68222.0,68221.0,0.020825]
[1729812432744,0.63913881,68222.0,68221.0,0.020825]
[1729812433217,0.52929818,68222.0,68221.0,0.020825]
[1729812433441,0.54022947,68222.0,68221.0,0.020825]
[1729812434113,0.65007089,68222.0,68221.0,0.020825]
[1729812434571,0.63908693,68222.0,68221.0,0.020825]
[1729812434784,0.52924915,68222.0,68221.0,0.020825]
[1729812435468,0.63908581,68222.0,68221.0,0.020825]
[1729812436350,0.54022899,68222.0,68221.0,0.020825]
[1729812437939,0.54021704,68222.0,68221.0,0.020825]
[1729812438615,0.65004072,68222.0,68221.0,0.020825]
[1729812438832,0.65003855,68222.0,68221.0,0.020825]
[1729812439061,0.54021704,68222.0,68221.0,0.020825]
[1729812439275,0.65003319,68222.0,68221.0,0.020825]
[1729812439495,0.66101198,68222.0,68221.0,0.020825]
[1729812439712,0.65003319,68222.0,68221.0,0.020825]
[1729812441305,0.54021704,68222.0,68221.0,0.020825]
[1729812441530,0.55119708,68222.0,68221.0,0.020825]
[1729812441760,0.54021704,68222.0,68221.0,0.020825]
[1729812443354,0.55119697,68222.0,68221.0,0.020825]
[1729812445583,0.54021713,68222.0,68221.0,0.020825]
[1729812445929,0.65006051,68222.0,68221.0,0.020825]
[1729812446144,0.54021713,68222.0,68221.0,0.020825]
[1729812448699,0.55120675,68222.0,68221.0,0.020825]
[1729812449376,0.54022682,68222.0,68221.0,0.020825]
[1729812450306,0.65009834,68222.0,68221.0,0.020825]
[1729812452067,0.65016002,68222.0,68221.0,0.020825]
[1729812452835,0.6391704,68222.0,68221.0,0.020825]
[1729812453800,0.65016067,68222.0,68221.0,0.020825]
[1729812454462,0.6391704,68222.0,68221.0,0.020825]
[1729812455561,0.52929675,68222.0,68221.0,0.020825]
[1729812455797,0.63917797,68222.0,68221.0,0.020825]
[1729812456714,0.65217007,68222.0,68221.0,0.020825]
[1729812456928,0.52929675,68222.0,68221.0,0.020825]
[1729812457610,0.53129675,68222.0,68221.0,0.020825]
[1729812457825,0.52929675,68222.0,68221.0,0.020825]
[1729812460226,0.53129675,68222.0,68221.0,0.020825]
[1729812463099,0.54229066,68222.0,68221.0,0.020825]
[1729812463307,0.57356807,68222.0,68221.0,0.020825]
[1729812464384,0.54229066,68222.0,68221.0,0.020825]
[1729812466510,0.33535762,68222.0,68221.0,0.020825]
[1729812466728,0.54029066,68222.0,68221.0,0.020825]
[1729812468079,0.64229066,68222.0,68221.0,0.020825]
[1729812469438,0.86925718,68222.0,68221.0,0.020825]
[1729812469682,0.76679066,68222.0,68221.0,0.020825]
[1729812469894,0.96702526,68222.0,68221.0,0.020825]
[1729812470132,0.99640713,68222.0,68221.0,0.020825]
[1729812471224,0.99656954,68222.0,68221.0,0.020825]
[1729812471466,0.86464834,68222.0,68221.0,0.020825]
[1729812471698,0.99657425,68222.0,68221.0,0.020825]
[1729812472187,1.23855067,68222.0,68221.0,0.020825]
[1729812472401,1.23854801,68222.0,68221.0,0.020825]
[1729812472837,1.10662476,68222.0,68221.0,0.020825]
[1729812473061,1.00885668,68222.0,68221.0,0.020825]
[1729812473954,1.00881328,68222.0,68221.0,0.020825]
[1729812475074,0.90634676,68222.0,68221.0,0.020825]
[1729812475512,1.00881328,68222.0,68221.0,0.020825]
[1729812475733,1.14067919,68222.0,68221.0,0.020825]
[1729812475988,0.89456905,68222.0,68221.0,0.020825]
[1729812476214,1.18868288,68222.0,68221.0,0.020825]
[1729812476639,1.03617907,68222.0,68221.0,0.020825]
[1729812476828,1.03817907,68222.0,68221.0,0.020825]
[1729812479090,1.03617907,68222.0,68221.0,0.020825]
[1729812480323,1.03817907,68222.0,68221.0,0.020825]
[1729812480765,1.14064559,68222.0,68221.0,0.020825]
[1729812480985,1.03817907,68222.0,68221.0,0.020825]
[1729812481389,1.03617907,68222.0,68221.0,0.020825]
[1729812481590,1.03817907,68222.0,68221.0,0.020825]
[1729812481820,1.03617907,68222.0,68221.0,0.020825]
[1729812482022,1.18868288,68222.0,68221.0,0.020825]
[1729812482441,1.18668288,68222.0,68221.0,0.020825]
[1729812483078,1.2891494,68222.0,68221.0,0.020825]
[1729812483503,0.35575463,68216.0,68215.0,0.21887426]
[1729812483706,0.62782234,68216.0,68215.0,0.21887426]
[1729812483970,0.62782234,68216.0,68207.0,0.21970026]
[1729812483971,0.14883159,68211.0,68207.0,0.21970026]
[1729812484186,0.45597083,68208.0,68207.0,0.21970026]
[1729812484390,0.70593585,68208.0,68207.0,0.21970026]
[1729812484597,0.62971,68208.0,68207.0,0.000826]
[1729812485276,0.71551958,68208.0,68207.0,0.000826]
[1729812485890,0.71751958,68208.0,68207.0,0.000826]
[1729812486120,0.86802339,68208.0,68207.0,0.000826]
[1729812486768,0.86602339,68208.0,68207.0,0.000826]
[1729812487426,0.77821381,68208.0,68207.0,0.000826]
[1729812487665,0.78021381,68208.0,68207.0,0.000826]
[1729812487874,0.77821381,68208.0,68207.0,0.000826]
[1729812488294,0.96842564,68208.0,68207.0,0.000826]
[1729812488510,0.77821381,68208.0,68207.0,0.000826]
[1729812488728,0.77804608,68208.0,68207.0,0.000826]
[1729812488963,0.97025561,68208.0,68207.0,0.000826]
[1729812489181,0.97025401,68208.0,68207.0,0.000826]
[1729812489389,0.86578749,68208.0,68207.0,0.000826]
[1729812489598,0.87435904,68208.0,68207.0,0.000826]
[1729812490019,0.97682556,68208.0,68207.0,0.000826]
[1729812490240,0.78661763,68208.0,68207.0,0.000826]
[1729812491285,0.62466835,68208.0,68207.0,0.000826]
[1729812491718,0.72913487,68208.0,68207.0,0.000826]
[1729812491934,0.89095459,68208.0,68207.0,0.000826]
[1729812492151,0.72913487,68208.0,68207.0,0.000826]
[1729812492370,0.62666835,68208.0,68207.0,0.000826]
[1729812492592,0.72913487,68208.0,68207.0,0.000826]
[1729812493464,0.62666835,68208.0,68207.0,0.000826]
[1729812493675,0.62466835,68208.0,68207.0,0.000826]
[1729812493884,0.77517216,68208.0,68207.0,0.000826]
[1729812494114,0.87763868,68208.0,68207.0,0.000826]
[1729812494529,0.57023912,68208.0,68207.0,0.000826]
[1729812494734,0.87763868,68208.0,68207.0,0.000826]
[1729812494941,0.87963868,68208.0,68207.0,0.000826]
[1729812496143,1.04139805,68208.0,68207.0,0.000826]
[1729812497080,0.14885359,68201.0,68200.0,0.001]
[1729812497280,0.45378663,68201.0,68200.0,0.001]
[1729812497496,0.25880355,68201.0,68200.0,0.001]
[1729812497701,0.46373659,68201.0,68200.0,0.001]
[1729812503061,0.25880355,68201.0,68200.0,0.001]
[1729812503270,0.36127007,68201.0,68200.0,0.2005]
[1729812504183,0.46373659,68201.0,68200.0,0.2005]
[1729812505334,0.36127007,68201.0,68200.0,0.2005]
[1729812505533,0.5878347,68201.0,68200.0,0.001826]
[1729812505755,0.14886659,68195.0,68194.0,0.1165]
[1729812505971,0.3637167,68195.0,68194.0,0.1165]
[1729812510283,0.14887059,68193.0,68192.0,0.083]
[1729812510525,0.15876747,68193.0,68192.0,0.083]
[1729812510944,0.14887459,68191.0,68190.0,0.117325]
[1729812511166,0.25134111,68191.0,68190.0,0.117325]
[1729812511381,0.26123799,68191.0,68190.0,0.117325]
[1729812512021,0.38997863,68191.0,68190.0,0.117325]
[1729812512669,0.49244515,68191.0,68190.0,0.117325]
[1729812512878,0.38997863,68191.0,68190.0,0.117325]
[1729812514185,0.43383654,68191.0,68190.0,0.117325]
[1729812514454,0.38997863,68191.0,68190.0,0.117325]
[1729812514913,0.59244515,68191.0,68190.0,0.000825]
[1729812517931,0.48997863,68191.0,68190.0,0.000825]
[1729812518156,0.59244515,68191.0,68190.0,0.000825]
[1729812520592,0.25877147,68191.0,68190.0,0.000825]
[1729812520808,0.46370451,68191.0,68190.0,0.000825]
[1729812522881,0.46370451,68191.0,68182.0,0.06342822]
[1729812522882,0.00222859,68183.0,68182.0,0.06342822]
[1729812523106,0.00222859,68183.0,68170.0,0.00733726]
[1729812523107,0.24891759,68171.0,68170.0,0.00733726]
[1729812523359,0.24891759,68171.0,68156.0,0.000826]
[1729812523360,0.24894859,68157.0,68156.0,0.000826]
[1729812523611,0.45586383,68157.0,68156.0,0.000826]
[1729812524263,0.66079687,68157.0,68156.0,0.000826]
[1729812524478,0.46399687,68157.0,68156.0,0.000826]
[1729812525596,0.60607506,68157.0,68156.0,0.000826]
[1729812528931,0.46399687,68157.0,68156.0,0.000826]
[1729812529143,0.36153035,68157.0,68156.0,0.000826]
[1729812529574,0.46399687,68157.0,68156.0,0.000826]
[1729812532568,0.46399687,68157.0,68142.0,0.21887426]
[1729812532569,0.24896959,68147.0,68142.0,0.21887426]
[1729812532785,0.47508571,68147.0,68142.0,0.21887426]
[1729812533011,0.68001875,68147.0,68142.0,0.21887426]
[1729812533250,0.24898259,68141.0,68134.0,0.21887426]
[1729812533464,0.37138259,68141.0,68134.0,0.21887426]
[1729812533673,0.57637324,68141.0,68134.0,0.21887426]
[1729812534341,0.57637324,68141.0,68132.0,0.0001]
[1729812534342,0.72687705,68141.0,68132.0,0.0001]
[1729812534572,0.72887705,68141.0,68132.0,0.0001]
[1729812535678,0.72887705,68141.0,68105.0,0.21887426]
[1729812535679,0.1224,68130.0,68105.0,0.21887426]
[1729812535895,0.1224,68130.0,68119.0,0.21887426]
[1729812535896,0.24901959,68124.0,68119.0,0.21887426]
[1729812536115,0.48502016,68124.0,68119.0,0.21887426]
[1729812536340,0.48502016,68124.0,68112.0,0.21887426]
[1729812536341,0.44074542,68124.0,68112.0,0.21887426]
[1729812536797,0.44274542,68124.0,68112.0,0.21887426]
[1729812537222,0.44274542,68124.0,68113.0,0.21887426]
[1729812537223,0.59124923,68124.0,68113.0,0.21887426]
[1729812538339,0.59124923,68124.0,68100.0,0.00334696]
[1729812538340,0.14905559,68107.0,68106.0,0.22492614]
[1729812538570,0.30953426,68107.0,68106.0,0.22492614]
[1729812539216,0.30953426,68107.0,68106.0,0.00605188]
[1729812539673,0.31173667,68107.0,68106.0,0.00605188]
[1729812540601,0.41173667,68107.0,68106.0,0.00605188]
[1729812542047,0.41173667,68107.0,68106.0,0.006]
[1729812548669,0.26262566,68107.0,68106.0,0.006]
[1729812549330,0.41173667,68107.0,68106.0,0.006]
[1729812554063,0.41173667,68107.0,68106.0,0.006826]
[1729812554699,0.26042325,68107.0,68106.0,0.006826]
[1729812555145,0.26262586,68107.0,68106.0,0.006826]
[1729812558432,0.41173687,68107.0,68106.0,0.006826]
[1729812559582,0.15819466,68107.0,68106.0,0.202426]
[1729812560061,0.15819466,68107.0,68106.0,0.35153701]
[1729812560277,0.15819466,68107.0,68106.0,0.202426]
[1729812560883,0.15832675,68107.0,68106.0,0.202426]
[1729812561766,0.15819466,68107.0,68106.0,0.202426]
[1729812562224,0.15819466,68107.0,68106.0,0.20701637]
[1729812562440,0.15819466,68107.0,68106.0,0.35752018]
[1729812562893,0.15819466,68107.0,68106.0,0.35292981]
[1729812564177,0.15832675,68107.0,68106.0,0.35292981]
[1729812564389,0.15832675,68107.0,68106.0,0.35752017]
[1729812564621,0.15819466,68107.0,68106.0,0.35752017]
[1729812564831,0.15832675,68107.0,68106.0,0.35752017]
[1729812565042,0.15819466,68107.0,68106.0,0.35752017]
[1729812565409,0.15832675,68107.0,68106.0,0.35292981]
[1729812565630,0.15819466,68107.0,68106.0,0.35292981]
[1729812566061,0.01136766,68107.0,68106.0,0.50204082]
[1729812566263,0.01136766,68107.0,68106.0,0.67686982]
[1729812566467,0.146821,68110.0,68108.0,0.2009]
[1729812566670,0.146821,68110.0,68109.0,0.17350381]
[1729812568311,0.146819,68111.0,68110.0,0.2009]
[1729812568533,0.146819,68111.0,68110.0,0.35140381]
[1729812568951,0.293599,68120.0,68115.0,0.005]
[1729812569169,0.293599,68120.0,68116.0,0.38233966]
[1729812569379,0.293581,68125.0,68120.0,0.005]
[1729812569584,0.148451,68121.0,68120.0,0.25990381]
[1729812570167,0.001654,68121.0,68120.0,0.25990381]
[1729812570368,0.148451,68121.0,68120.0,0.25990381]
[1729812570787,0.001654,68121.0,68120.0,0.25990381]
[1729812570964,0.148451,68121.0,68120.0,0.25990381]
[1729812571871,0.001654,68121.0,68120.0,0.25990381]
[1729812572075,0.148451,68121.0,68120.0,0.25990381]
[1729812572537,0.001654,68121.0,68120.0,0.25990381]
[1729812572688,0.148451,68121.0,68120.0,0.25990381]
[1729812573778,0.001654,68121.0,68120.0,0.25990381]
[1729812573979,0.148451,68121.0,68120.0,0.25990381]
[1729812574180,0.15952377,68121.0,68120.0,0.25990381]
[1729812574592,0.15952377,68121.0,68120.0,0.26449288]
[1729812575443,0.15952377,68121.0,68120.0,0.25990381]
[1729812576260,0.15952377,68121.0,68120.0,0.26449288]
[1729812577248,0.15952377,68121.0,68120.0,0.26531988]
[1729812578233,0.15952377,68121.0,68120.0,0.26073081]
[1729812583288,0.15952377,68121.0,68120.0,0.23273081]
[1729812592001,0.15952377,68121.0,68120.0,0.000827]
[1729812593254,0.440418,68117.0,68114.0,0.0816]
[1729812593475,0.15799945,68116.0,68115.0,0.15050381]
[1729812599745,0.01119145,68116.0,68114.0,0.0816]
[1729812599947,0.14681,68115.0,68114.0,0.0816]
[1729812600979,0.30480845,68116.0,68111.0,0.1198035]
[1729812600980,0.146817,68112.0,68111.0,0.1198035]
[1729812601180,0.146817,68112.0,68111.0,0.27030731]
[1729812601436,0.10268749,68113.0,68104.0,0.1169]
[1729812601659,0.146827,68107.0,68105.0,0.21887426]
[1729812602302,0.146827,68107.0,68103.0,0.05]
[1729812602504,0.146827,68107.0,68101.0,0.0029035]
[1729812602906,0.14902939,68107.0,68101.0,0.0029035]
[1729812603283,0.14902939,68107.0,68100.0,0.08204346]
[1729812603493,0.14902939,68107.0,68101.0,0.0029035]
[1729812604707,0.14902939,68107.0,68100.0,0.08204346]
[1729812605753,0.15125798,68107.0,68100.0,0.00044346]
[1729812607343,0.36045798,68107.0,68100.0,0.00044346]
[1729812608014,0.15125798,68107.0,68100.0,0.00044346]
[1729812612049,0.14905559,68107.0,68100.0,0.00044346]
[1729812612293,0.15125864,68107.0,68100.0,0.00044346]
[1729812612530,0.25125864,68107.0,68100.0,0.00044346]
[1729812613007,0.40030857,68107.0,68100.0,0.00044346]
[1729812614177,0.54942724,68107.0,68100.0,0.00044346]
[1729812614422,0.25125864,68107.0,68100.0,0.00044346]
[1729812614663,0.40037731,68107.0,68100.0,0.00044346]
[1729812614914,0.25125864,68107.0,68100.0,0.00044346]
[1729812615161,0.25125864,68107.0,68100.0,0.07684346]
[1729812615162,0.15125864,68107.0,68100.0,0.07684346]
[1729812615627,0.14905559,68107.0,68100.0,0.07684346]
[1729812615857,0.1512581,68107.0,68100.0,0.07684346]
[1729812616573,0.1491616,68107.0,68100.0,0.07684346]
[1729812616797,0.1491616,68107.0,68100.0,0.22889868]
[1729812616798,0.14902951,68107.0,68100.0,0.22889868]
[1729812617023,0.14902951,68107.0,68101.0,0.146838]
[1729812617249,0.14902951,68107.0,68102.0,0.146838]
[1729812617479,0.14902951,68107.0,68101.0,0.00293648]